bitfinex/quotes_BTCUSD_20220405
["timestamp","ask_amount","ask_price","bid_price","bid_amount"]
[1649178153360,0.31267731,45975.0,45968.0,0.24337928]
[1649178153458,0.323626,45974.0,45969.0,0.00052716]
[1649178154060,0.323626,45971.0,45969.0,0.00052716]
[1649178154513,0.323626,45971.0,45962.0,0.35774044]
[1649178154615,0.29852591,45972.0,45962.0,0.40774044]
[1649178154712,0.48287849,45971.0,45968.0,0.00052717]
[1649178155264,0.323626,45971.0,45968.0,0.00052717]
[1649178155665,0.323626,45971.0,45962.0,0.40774044]
[1649178155764,0.29852591,45972.0,45962.0,0.40774044]
[1649178155867,0.323626,45971.0,45967.0,0.00052721]
[1649178156951,0.323626,45971.0,45960.0,0.28095409]
[1649178157053,0.29852591,45972.0,45967.0,0.00052721]
[1649178157152,0.323626,45971.0,45967.0,0.00052721]
[1649178158054,0.323626,45968.0,45960.0,0.6606796]
[1649178158155,0.323626,45971.0,45960.0,0.6606796]
[1649178158256,0.323626,45971.0,45967.0,0.00052721]
[1649178159306,0.24434916,45969.0,45960.0,0.6606796]
[1649178159409,0.29852591,45972.0,45960.0,0.6606796]
[1649178159507,0.323626,45971.0,45967.0,0.00052721]
[1649178159707,0.723626,45971.0,45967.0,0.00052721]
[1649178159836,0.25458,45970.0,45967.0,0.00052721]
[1649178159942,0.323626,45969.0,45967.0,0.00052721]
[1649178160038,0.01088,45968.0,45967.0,0.00052721]
[1649178160135,0.334506,45968.0,45967.0,0.00052721]
[1649178160235,0.378206,45968.0,45967.0,0.00052721]
[1649178160334,0.478206,45968.0,45967.0,0.00052721]
[1649178160445,0.478206,45968.0,45955.0,6.303e-05]
[1649178160634,0.323626,45962.0,45955.0,6.303e-05]
[1649178160741,0.00012605,45954.0,45953.0,0.29825113]
[1649178160836,0.00012605,45954.0,45950.0,0.28428611]
[1649178161490,0.00012605,45954.0,45950.0,0.29516447]
[1649178161885,0.00012605,45954.0,45951.0,0.28268048]
[1649178162086,0.00012605,45954.0,45951.0,0.33268048]
[1649178162185,0.00012605,45954.0,45951.0,0.38268048]
[1649178163390,0.00012605,45954.0,45952.0,0.054383]
[1649178163876,0.00012605,45954.0,45951.0,0.38268048]
[1649178164375,0.00012605,45954.0,45951.0,0.38320859]
[1649178165276,0.00012605,45954.0,45951.0,0.38268048]
[1649178170376,0.00012605,45954.0,45951.0,0.38811965]
[1649178170976,0.00012605,45954.0,45951.0,0.38268048]
[1649178171117,0.00012605,45954.0,45951.0,0.1]
[1649178171321,0.00012605,45954.0,45950.0,0.38428611]
[1649178171469,0.00012605,45954.0,45950.0,0.39025281]
[1649178172168,0.00012605,45954.0,45951.0,0.27354065]
[1649178172319,0.00012605,45954.0,45951.0,0.32354065]
[1649178172418,0.00012605,45954.0,45951.0,0.1]
[1649178172722,0.1,45963.0,45951.0,0.95]
[1649178172868,0.1,45963.0,45951.0,0.1]
[1649178172967,0.1,45963.0,45951.0,0.05]
[1649178173068,0.00217183,45954.0,45950.0,0.38481343]
[1649178173672,0.00217183,45954.0,45950.0,0.38428611]
[1649178173771,0.00217183,45954.0,45950.0,0.62792347]
[1649178173969,0.00217183,45954.0,45950.0,0.62845079]
[1649178174370,0.00217183,45954.0,45950.0,0.62345079]
[1649178174965,0.00217183,45954.0,45950.0,0.62292347]
[1649178175067,0.00434366,45954.0,45950.0,0.62292347]
[1649178175165,0.00434366,45954.0,45950.0,0.62345079]
[1649178175273,0.00434366,45954.0,45951.0,0.29533187]
[1649178175367,0.00434366,45954.0,45952.0,0.01088]
[1649178175568,0.00434366,45954.0,45952.0,0.05458]
[1649178176015,0.00434366,45954.0,45953.0,0.38028049]
[1649178176114,0.00651549,45954.0,45953.0,0.39116049]
[1649178176215,0.00651549,45954.0,45953.0,0.54116049]
[1649178176617,0.00651549,45954.0,45953.0,0.16088]
[1649178176821,0.00651549,45954.0,45953.0,0.06088]
[1649178176916,0.00651549,45954.0,45953.0,0.05]
[1649178177220,0.00868732,45954.0,45953.0,0.05]
[1649178177367,0.00868732,45954.0,45952.0,0.01088]
[1649178177469,0.00868732,45954.0,45951.0,0.01088]
[1649178177568,0.00868732,45954.0,45952.0,0.41958936]
[1649178177669,0.01068765,45954.0,45952.0,0.41958936]
[1649178177772,0.01068765,45954.0,45952.0,0.52502826]
[1649178177968,0.01068765,45954.0,45953.0,0.01088]
[1649178178168,0.01285948,45954.0,45953.0,0.01088]
[1649178178776,0.01485981,45954.0,45952.0,0.01088]
[1649178179078,0.01460092,45954.0,45952.0,0.01088]
[1649178179277,0.01677275,45954.0,45952.0,0.01088]
[1649178179778,0.01877308,45954.0,45951.0,0.01088]
[1649178179879,0.01877308,45954.0,45951.0,0.01116]
[1649178180289,0.02094491,45954.0,45951.0,0.01116]
[1649178180731,0.02094491,45954.0,45951.0,0.00028]
[1649178180831,0.02294524,45954.0,45951.0,0.00028]
[1649178180935,0.02294524,45954.0,45950.0,0.38428611]
[1649178181182,0.02294524,45954.0,45950.0,0.38481381]
[1649178181282,0.02511707,45954.0,45950.0,0.38481381]
[1649178181481,0.02511707,45954.0,45951.0,0.26661529]
[1649178181683,0.02511707,45954.0,45951.0,0.31661529]
[1649178181885,0.0271174,45954.0,45951.0,0.31661529]
[1649178182313,0.02928923,45954.0,45950.0,0.38483121]
[1649178182913,0.03128956,45954.0,45950.0,0.38483121]
[1649178183313,0.03128956,45954.0,45950.0,0.38428611]
[1649178183413,0.03128956,45954.0,45952.0,0.27889907]
[1649178183414,0.03346139,45954.0,45952.0,0.27889907]
[1649178183514,0.03346139,45954.0,45952.0,0.05]
[1649178183614,0.03346139,45954.0,45950.0,0.38483121]
[1649178183916,0.03546172,45954.0,45950.0,0.38483121]
[1649178184365,0.03763355,45954.0,45950.0,0.38483121]
[1649178184567,0.03763355,45954.0,45950.0,0.38428611]
[1649178184767,0.03763355,45954.0,45950.0,0.38483121]
[1649178184869,0.03763355,45954.0,45953.0,0.26997854]
[1649178184966,0.03963388,45954.0,45953.0,0.26997854]
[1649178185068,0.03963388,45954.0,45953.0,0.31997854]
[1649178185417,0.04180571,45954.0,45953.0,0.31997854]
[1649178186067,0.04380604,45954.0,45953.0,0.31997854]
[1649178186468,0.04597787,45954.0,45953.0,0.31997854]
[1649178187019,0.0479782,45954.0,45953.0,0.31997854]
[1649178187218,0.0479782,45954.0,45951.0,0.11034957]
[1649178187320,0.0479782,45954.0,45951.0,0.06034957]
[1649178187520,0.05015003,45954.0,45951.0,0.06034957]
[1649178187827,0.05015003,45954.0,45951.0,0.00596457]
[1649178188123,0.04997853,45954.0,45951.0,0.05982526]
[1649178188320,0.04997853,45954.0,45952.0,0.28451567]
[1649178188420,0.04997853,45954.0,45953.0,0.01088]
[1649178189178,0.0541507,45954.0,45953.0,0.01088]
[1649178189274,0.0541507,45954.0,45951.0,0.01088]
[1649178189573,0.0541507,45954.0,45951.0,0.01140665]
[1649178189835,0.32738269,45954.0,45951.0,0.01140665]
[1649178190123,0.32938302,45954.0,45951.0,0.01140665]
[1649178190226,0.32938303,45954.0,45951.0,0.01140665]
[1649178190424,0.05615104,45954.0,45951.0,0.01140665]
[1649178190522,0.05615104,45954.0,45951.0,0.01088]
[1649178191039,0.05615104,45954.0,45950.0,0.10052666]
[1649178191127,0.05615104,45954.0,45950.0,0.05052666]
[1649178191229,0.05815138,45954.0,45950.0,0.00052666]
[1649178191527,0.24047178,45951.0,45950.0,0.00052666]
[1649178191777,0.24047178,45951.0,45947.0,0.03]
[1649178191875,0.05815138,45954.0,45947.0,0.03]
[1649178191981,0.05815138,45954.0,45948.0,0.00052667]
[1649178192277,0.06015172,45954.0,45948.0,0.00052667]
[1649178192830,0.269919,45953.0,45948.0,0.00052667]
[1649178192926,0.269919,45953.0,45947.0,0.30911602]
[1649178193029,0.05815139,45954.0,45947.0,0.03]
[1649178193127,0.05815139,45954.0,45949.0,0.00052658]
[1649178193228,0.06032323,45954.0,45949.0,0.00052658]
[1649178193328,0.0581514,45954.0,45949.0,0.00052658]
[1649178194115,0.0581514,45954.0,45947.0,0.29271677]
[1649178194116,0.00105316,45948.0,45947.0,0.29271677]
[1649178194214,0.00105316,45948.0,45947.0,0.38810199]
[1649178194319,0.00105316,45948.0,45947.0,0.17538522]
[1649178194865,0.05574479,45954.0,45947.0,0.17538522]
[1649178194966,0.05574479,45954.0,45947.0,0.08]
[1649178195267,0.05574479,45954.0,45947.0,0.37660343]
[1649178195268,0.27803229,45954.0,45947.0,0.37660343]
[1649178195370,0.00217184,45948.0,45947.0,0.08]
[1649178195470,0.00217184,45948.0,45947.0,0.17538522]
[1649178195567,0.00217184,45948.0,45947.0,0.08]
[1649178197019,0.00417217,45948.0,45947.0,0.08]
[1649178197358,0.00634401,45948.0,45947.0,0.08]
[1649178198067,0.00834434,45948.0,45947.0,0.08]
[1649178198411,0.01002249,45948.0,45947.0,0.08]
[1649178199061,0.01202282,45948.0,45947.0,0.08]
[1649178199465,0.01419466,45948.0,45947.0,0.08]
[1649178200063,0.01619499,45948.0,45947.0,0.08]
[1649178200471,0.01836683,45948.0,45947.0,0.08]
[1649178201121,0.02036716,45948.0,45947.0,0.08]
[1649178201515,0.022539,45948.0,45947.0,0.08]
[1649178202264,0.02453933,45948.0,45947.0,0.08]
[1649178202471,0.02671117,45948.0,45947.0,0.08]
[1649178202568,0.02671117,45948.0,45947.0,0.05]
[1649178202870,0.70476017,45948.0,45945.0,0.00056359]
[1649178202972,0.323626,45947.0,45945.0,0.00056359]
[1649178203072,0.623626,45946.0,45945.0,0.00056359]
[1649178203370,0.634506,45946.0,45945.0,0.00056359]
[1649178203469,0.734506,45946.0,45945.0,0.00056359]
[1649178203721,0.678206,45946.0,45945.0,0.00056359]
[1649178203820,0.323626,45945.0,45933.0,0.26700908]
[1649178203920,0.29210261,45936.0,45932.0,0.26700908]
[1649178204070,0.36004261,45936.0,45931.0,0.27700908]
[1649178204171,0.36004261,45936.0,45931.0,0.27483724]
[1649178204369,0.36204294,45936.0,45931.0,0.27483724]
[1649178204471,0.31938284,45936.0,45931.0,0.27483724]
[1649178204833,0.31938284,45936.0,45931.0,0.00782816]
[1649178205134,0.08749229,45935.0,45931.0,0.00782816]
[1649178205239,0.054436,45935.0,45931.0,0.00782816]
[1649178205429,0.05643633,45935.0,45931.0,0.00782816]
[1649178205534,0.1109536,45935.0,45931.0,0.00782816]
[1649178205733,0.323626,45934.0,45931.0,0.00782816]
[1649178205829,0.0565186,45935.0,45931.0,0.00782816]
[1649178206085,0.334516,45934.0,45931.0,0.00782816]
[1649178206582,0.33608213,45934.0,45931.0,0.00782816]
[1649178207333,0.39052013,45934.0,45931.0,0.00782816]
[1649178207538,0.39252046,45934.0,45931.0,0.00782816]
[1649178207638,0.49408659,45934.0,45931.0,0.00782816]
[1649178207891,0.0437,45933.0,45931.0,0.00782816]
[1649178207986,0.334516,45932.0,45931.0,0.00782816]
[1649178208188,0.484516,45932.0,45931.0,0.00782816]
[1649178208289,0.528216,45932.0,45931.0,0.00782816]
[1649178208567,0.87975775,45932.0,45931.0,0.00782816]
[1649178208624,0.88332421,45932.0,45931.0,0.00782816]
[1649178209122,1.08332421,45932.0,45931.0,0.00782816]
[1649178209422,1.08332421,45932.0,45929.0,0.00056096]
[1649178209524,0.432527,45930.0,45929.0,0.00056096]
[1649178209623,0.44349927,45930.0,45929.0,0.00056096]
[1649178209722,0.59349927,45930.0,45929.0,0.00056096]
[1649178209823,0.93719927,45930.0,45929.0,0.00056096]
[1649178209924,0.93719927,45930.0,45918.0,0.3478]
[1649178210024,0.01089,45929.0,45918.0,0.3478]
[1649178210127,0.323626,45928.0,45927.0,0.00052344]
[1649178210225,0.367326,45928.0,45927.0,0.00052344]
[1649178210324,0.18958058,45924.0,45920.0,0.00061719]
[1649178210425,0.21877585,45921.0,45920.0,0.00061719]
[1649178210524,0.54240185,45921.0,45920.0,0.00061719]
[1649178210725,0.32519213,45921.0,45920.0,0.00061719]
[1649178211180,0.32519213,45921.0,45916.0,0.01]
[1649178211275,0.00156613,45921.0,45916.0,0.01]
[1649178211584,0.00129065,45921.0,45916.0,0.01]
[1649178211678,0.00285678,45921.0,45916.0,0.01]
[1649178212522,0.00285678,45921.0,45918.0,0.327686]
[1649178212621,0.00285678,45921.0,45918.0,0.00544228]
[1649178212723,0.00293905,45921.0,45919.0,0.30588288]
[1649178212822,0.00293905,45921.0,45919.0,0.11089]
[1649178212920,0.00293905,45921.0,45919.0,0.21089]
[1649178213225,0.00159311,45921.0,45919.0,0.21089]
[1649178213723,0.00159311,45921.0,45920.0,0.23531774]
[1649178213820,0.00159311,45921.0,45920.0,0.24620774]
[1649178213821,0.00167538,45921.0,45920.0,0.24620774]
[1649178214221,0.00167538,45921.0,45920.0,0.24731294]
[1649178214770,0.00175765,45921.0,45920.0,0.24731294]
[1649178215727,0.00175765,45921.0,45920.0,0.0011052]
[1649178215876,0.00332378,45921.0,45920.0,0.0011052]
[1649178216224,0.00332378,45921.0,45918.0,0.00056089]
[1649178216822,0.18358527,45921.0,45918.0,0.00056089]
[1649178216975,0.1851514,45921.0,45918.0,0.00056089]
[1649178217072,0.1851514,45921.0,45916.0,0.01]
[1649178217277,0.1851514,45921.0,45917.0,0.00056089]
[1649178217890,0.18671753,45921.0,45916.0,0.00556089]
[1649178217978,0.24116953,45921.0,45916.0,0.00556089]
[1649178218230,0.18671753,45921.0,45916.0,0.00556089]
[1649178218628,0.3034686,45917.0,45916.0,0.00556089]
[1649178218926,0.30503473,45917.0,45916.0,0.00556089]
[1649178219632,0.00156613,45917.0,45916.0,0.00556089]
[1649178219968,0.0016484,45917.0,45916.0,0.00556089]
[1649178220972,0.00173067,45917.0,45916.0,0.00556089]
[1649178221073,0.27970357,45917.0,45916.0,0.00556089]
[1649178221974,0.27978584,45917.0,45916.0,0.00556089]
[1649178222374,0.00181294,45917.0,45916.0,0.00556089]
[1649178223024,0.00189521,45917.0,45916.0,0.00556089]
[1649178223235,0.01278521,45917.0,45916.0,0.00556089]
[1649178223425,0.63641121,45917.0,45916.0,0.00556089]
[1649178223577,0.31278521,45917.0,45916.0,0.00556089]
[1649178223680,0.63444611,45917.0,45916.0,0.00556089]
[1649178223778,0.95807211,45917.0,45916.0,0.00556089]
[1649178223876,1.16700111,45917.0,45916.0,0.00556089]
[1649178223977,1.21070111,45917.0,45916.0,0.00556089]
[1649178224074,1.21226724,45917.0,45916.0,0.00556089]
[1649178224177,0.0109947,45912.0,45911.0,0.0999]
[1649178224277,0.3346207,45912.0,45911.0,0.0999]
[1649178224426,0.6783207,45912.0,45911.0,0.0999]
[1649178224627,0.6783207,45912.0,45898.0,0.01089]
[1649178224628,0.3783207,45912.0,45903.0,0.0012446]
[1649178224727,0.0546947,45912.0,45903.0,0.27446583]
[1649178224936,0.0546947,45912.0,45910.0,0.25081687]
[1649178225027,0.0546947,45912.0,45910.0,0.30081687]
[1649178225126,0.01256083,45912.0,45910.0,0.30081687]
[1649178225228,0.01256083,45912.0,45910.0,0.29864503]
[1649178225777,0.01256083,45912.0,45911.0,0.29041279]
[1649178226129,0.01412696,45912.0,45911.0,0.29041279]
[1649178226680,0.01412696,45912.0,45911.0,0.34484479]
[1649178227041,0.01412696,45912.0,45911.0,0.40573479]
[1649178227131,0.01420923,45912.0,45911.0,0.50573479]
[1649178228140,0.01420923,45912.0,45911.0,0.68481354]
[1649178228240,0.01577536,45912.0,45911.0,0.50573479]
[1649178228547,0.01577536,45912.0,45911.0,0.45130279]
[1649178229199,0.01585763,45912.0,45911.0,0.45130279]
[1649178229498,0.01585763,45912.0,45911.0,0.35130279]
[1649178229896,0.00346134,45917.0,45912.0,0.00484]
[1649178229995,0.00346134,45917.0,45913.0,0.01089]
[1649178230103,0.00346134,45917.0,45914.0,0.6641]
[1649178230251,0.00346134,45917.0,45916.0,0.67511305]
[1649178230349,0.00354361,45917.0,45916.0,0.78600173]
[1649178230451,0.00354361,45917.0,45916.0,0.17190173]
[1649178230545,0.00354361,45917.0,45916.0,0.21560173]
[1649178230696,0.00354361,45917.0,45916.0,0.26560173]
[1649178230901,0.00354361,45917.0,45916.0,0.63837903]
[1649178231077,0.00354361,45917.0,45916.0,0.96130171]
[1649178231274,0.00354361,45917.0,45916.0,0.95930138]
[1649178231381,0.00362588,45917.0,45916.0,0.95930138]
[1649178232374,0.00519201,45917.0,45916.0,0.95930138]
[1649178233223,0.00519201,45917.0,45916.0,0.96068587]
[1649178233425,0.00527428,45917.0,45916.0,0.96068587]
[1649178233626,0.00404723,45917.0,45916.0,0.96068587]
[1649178234126,0.00404723,45917.0,45916.0,1.62478587]
[1649178234428,0.00561336,45917.0,45916.0,1.7460844]
[1649178234531,0.00561336,45917.0,45916.0,1.73507267]
[1649178234628,0.00561336,45917.0,45916.0,1.74608488]
[1649178235469,0.00569563,45917.0,45916.0,1.74608488]
[1649178235576,0.00173067,45917.0,45916.0,1.74608488]
[1649178235718,0.00052466,45919.0,45918.0,0.6641]
[1649178235821,0.00052466,45919.0,45918.0,0.87087055]
[1649178235921,0.00052466,45919.0,45918.0,1.16689639]
[1649178236067,8.227e-05,45930.0,45918.0,1.58351907]
[1649178236225,8.227e-05,45930.0,45923.0,0.6641]
[1649178236320,8.227e-05,45930.0,45924.0,0.02177057]
[1649178236518,8.227e-05,45930.0,45925.0,0.98019872]
[1649178236619,8.227e-05,45930.0,45926.0,0.01089]
[1649178236718,8.227e-05,45930.0,45926.0,0.05459]
[1649178237019,0.00016454,45930.0,45929.0,0.20299321]
[1649178237121,8.227e-05,45930.0,45929.0,0.20299321]
[1649178237217,8.227e-05,45930.0,45929.0,0.59720407]
[1649178237319,8.227e-05,45930.0,45929.0,0.80601107]
[1649178237619,8.227e-05,45930.0,45929.0,0.81145138]
[1649178238018,8.227e-05,45930.0,45929.0,0.93138085]
[1649178238118,0.00016454,45930.0,45929.0,0.82257385]
[1649178238320,0.00016454,45930.0,45929.0,0.81713354]
[1649178238422,0.00016454,45930.0,45929.0,0.57751268]
[1649178238986,0.00016454,45930.0,45929.0,0.25459]
[1649178239087,0.00173067,45930.0,45929.0,0.25459]
[1649178239190,0.00173067,45930.0,45929.0,0.15459]
[1649178240137,0.00181294,45930.0,45929.0,0.15459]
[1649178241190,0.00337907,45930.0,45929.0,0.15459]
[1649178241390,0.00337907,45930.0,45929.0,0.11089]
[1649178241575,0.00337907,45930.0,45929.0,0.06089]
[1649178241641,0.00337907,45930.0,45929.0,0.01089]
[1649178241841,0.00337907,45930.0,45925.0,0.31609872]
[1649178242324,0.0049452,45930.0,45925.0,0.31609872]
[1649178242679,0.00546814,45930.0,45925.0,0.31609872]
[1649178242784,0.00538587,45930.0,45926.0,0.27794332]
[1649178242984,0.00538587,45930.0,45926.0,0.37794332]
[1649178243335,0.00538587,45930.0,45926.0,0.67794332]
[1649178243685,0.00486293,45930.0,45926.0,0.67794332]
[1649178243784,0.00486293,45930.0,45926.0,0.67786105]
[1649178243894,0.00536501,45930.0,45926.0,0.77786105]
[1649178243986,0.00536501,45930.0,45927.0,0.01089]
[1649178244185,0.00536501,45930.0,45927.0,0.065303]
[1649178244290,0.00536501,45930.0,45927.0,0.44747236]
[1649178244738,0.00536501,45930.0,45927.0,0.065303]
[1649178244840,0.00486293,45930.0,45927.0,0.23316494]
[1649178245139,0.00486293,45930.0,45927.0,0.01089]
[1649178246175,0.00486293,45930.0,45927.0,0.00871816]
[1649178246576,0.00486293,45930.0,45929.0,0.00138728]
[1649178247628,0.00486293,45930.0,45929.0,0.52374327]
[1649178247727,0.00486293,45930.0,45929.0,0.30138728]
[1649178247828,0.00486293,45930.0,45929.0,0.40138728]
[1649178247929,0.00486293,45930.0,45929.0,0.4068281]
[1649178248229,0.00486293,45930.0,45929.0,0.4177181]
[1649178248329,0.00486293,45930.0,45929.0,0.98413756]
[1649178248428,0.00208803,45930.0,45929.0,1.29466474]
[1649178248679,0.00308902,45935.0,45930.0,1.45]
[1649178248780,0.0004888,45932.0,45930.0,1.77122511]
[1649178248932,0.0004888,45932.0,45931.0,0.58134736]
[1649178249033,0.0004888,45932.0,45931.0,0.74014936]
[1649178249333,0.0004888,45932.0,45931.0,0.96250412]
[1649178249632,0.00308902,45935.0,45931.0,0.96250412]
[1649178249844,0.3185,45951.0,45932.0,1.4]
[1649178249845,0.00388935,45941.0,45932.0,1.4]
[1649178249939,0.00048879,45934.0,45933.0,0.00544038]
[1649178250039,0.00048879,45934.0,45933.0,0.30544038]
[1649178250642,0.00048879,45934.0,45933.0,0.35984038]
[1649178250742,0.00048879,45934.0,45933.0,0.58218064]
[1649178250839,0.00388935,45941.0,45933.0,0.69307064]
[1649178250945,0.00388935,45941.0,45936.0,0.42274792]
[1649178251040,0.00388935,45941.0,45939.0,0.22842926]
[1649178251144,0.00388935,45941.0,45940.0,0.3]
[1649178252341,0.00388935,45941.0,45940.0,0.29799967]
[1649178252994,0.00388935,45941.0,45939.0,0.05]
[1649178253096,0.00388935,45941.0,45940.0,0.23167854]
[1649178253627,0.00238237,45941.0,45940.0,0.23167854]
[1649178254028,0.00238237,45941.0,45939.0,0.108707]
[1649178254135,0.00238237,45941.0,45939.0,0.05]
[1649178254233,0.00238237,45941.0,45936.0,0.38311694]
[1649178254730,0.00287387,45941.0,45936.0,0.38311694]
[1649178255132,0.00287387,45941.0,45939.0,0.26505551]
[1649178255230,0.00287387,45941.0,45939.0,0.36505551]
[1649178255532,0.00287387,45941.0,45940.0,0.3]
[1649178255533,0.00249387,45941.0,45940.0,0.3]
[1649178255636,0.0024915,45941.0,45940.0,0.31088]
[1649178255733,0.002,45941.0,45940.0,0.35458]
[1649178255836,0.002,45941.0,45940.0,0.45458]
[1649178256031,0.002,45941.0,45940.0,0.46558826]
[1649178256737,0.00249266,45942.0,45940.0,0.46558826]
[1649178256834,0.00249266,45942.0,45941.0,0.31088]
[1649178256933,0.0011,45949.0,45942.0,2.41459]
[1649178257041,0.0011,45949.0,45943.0,0.01088]
[1649178257135,0.0011,45949.0,45943.0,0.773068]
[1649178257234,0.0011,45949.0,45945.0,0.6641]
[1649178257380,0.0011,45949.0,45946.0,0.67498]
[1649178257482,0.0011,45949.0,45947.0,0.9641]
[1649178257582,0.0011,45949.0,45947.0,1.02498]
[1649178257686,0.0011,45949.0,45947.0,1.40318227]
[1649178257780,0.0011,45949.0,45947.0,1.44688227]
[1649178257881,0.0011,45949.0,45947.0,1.81355956]
[1649178258088,0.0011,45949.0,45947.0,2.03773483]
[1649178258187,0.02100137,45954.0,45947.0,2.03773483]
[1649178258188,0.01903203,45954.0,45948.0,1.75]
[1649178258284,0.01903203,45954.0,45949.0,0.01088]
[1649178258385,0.01903203,45954.0,45949.0,0.05458]
[1649178258488,0.01903203,45954.0,45950.0,0.3]
[1649178258586,0.01903203,45954.0,45950.0,0.31100538]
[1649178258685,0.01903203,45954.0,45950.0,0.36558538]
[1649178258784,0.01903203,45954.0,45950.0,0.46558538]
[1649178259186,0.001,45951.0,45950.0,0.46558538]
[1649178259384,0.001,45951.0,45950.0,0.16558538]
[1649178259884,0.001,45951.0,45950.0,0.06558538]
[1649178260589,0.001,45951.0,45950.0,0.72968538]
[1649178260891,0.001,45951.0,45950.0,0.82968538]
[1649178261675,0.001,45951.0,45950.0,0.16558538]
[1649178261878,0.001,45951.0,45950.0,0.06558538]
[1649178262176,0.001,45951.0,45950.0,0.72968538]
[1649178262377,0.001,45951.0,45950.0,0.82968538]
[1649178263278,0.001,45951.0,45950.0,0.16558538]
[1649178263378,0.001,45951.0,45950.0,0.72968538]
[1649178263578,0.001,45951.0,45950.0,0.82968538]
[1649178264482,0.001,45951.0,45950.0,0.16558538]
[1649178264682,0.001,45951.0,45950.0,0.06558538]
[1649178265346,0.00074109,45951.0,45950.0,0.06558538]
[1649178265545,0.00074109,45951.0,45950.0,0.72968538]
[1649178265648,0.00074109,45951.0,45950.0,0.82968538]
[1649178265847,0.0011,45958.0,45952.0,0.6641]
[1649178265946,0.0011,45958.0,45953.0,0.26543636]
[1649178266048,0.0011,45958.0,45954.0,0.6641]
[1649178266145,0.0011,45958.0,45954.0,0.7186745]
[1649178266249,0.0011,45958.0,45956.0,0.6641]
[1649178266346,0.0011,45958.0,45957.0,0.6641]
[1649178266445,0.0011,45958.0,45957.0,0.71868]
[1649178266548,0.0011,45958.0,45957.0,1.07358979]
[1649178266747,0.0011,45958.0,45957.0,0.81868]
[1649178267244,0.006,45960.0,45959.0,0.6641]
[1649178267346,0.006,45960.0,45959.0,0.77498]
[1649178267446,0.006,45960.0,45959.0,0.81868]
[1649178267647,0.006,45960.0,45959.0,0.82968167]
[1649178267749,0.004,45960.0,45959.0,0.82968167]
[1649178267847,0.002,45970.0,45961.0,0.6641]
[1649178267945,0.002,45970.0,45964.0,0.6641]
[1649178268045,0.002,45970.0,45964.0,0.75531]
[1649178268147,0.002,45970.0,45964.0,0.85531]
[1649178268581,0.002,45970.0,45967.0,0.6641]
[1649178268685,0.002,45970.0,45968.0,0.01088]
[1649178268783,0.002,45970.0,45967.0,0.01088]
[1649178268882,0.002,45970.0,45968.0,0.0437]
[1649178269080,0.002,45970.0,45968.0,0.61557222]
[1649178269181,0.002,45970.0,45968.0,0.71557222]
[1649178269784,0.002,45970.0,45968.0,0.72657389]
[1649178270384,0.002,45970.0,45968.0,0.15470167]
[1649178270584,0.002,45970.0,45968.0,0.05470167]
[1649178271334,0.002,45970.0,45968.0,0.71880167]
[1649178271562,0.002,45970.0,45968.0,0.15470167]
[1649178272578,0.002,45970.0,45968.0,1.01880167]
[1649178272677,0.002,45970.0,45968.0,1.02968167]
[1649178272779,0.002,45970.0,45968.0,1.12968167]
[1649178272926,0.002,45970.0,45968.0,0.16558167]
[1649178273427,0.002,45970.0,45968.0,1.12968167]
[1649178273624,0.0038689,45969.0,45968.0,1.12968167]
[1649178273825,0.0038689,45969.0,45968.0,0.46558167]
[1649178274175,0.0038689,45969.0,45968.0,0.16558167]
[1649178274375,0.0038689,45969.0,45968.0,0.06558167]
[1649178274476,0.0038689,45969.0,45968.0,0.36558167]
[1649178274680,0.0038689,45969.0,45968.0,0.16696529]
[1649178274877,0.0038689,45969.0,45968.0,0.46696434]
[1649178275378,6.89e-05,45970.0,45969.0,2.4141]
[1649178275478,6.89e-05,45970.0,45969.0,2.43598024]
[1649178275581,6.89e-05,45970.0,45969.0,2.53598024]
[1649178275778,6.89e-05,45970.0,45969.0,2.57968024]
[1649178277935,7.787e-05,45972.0,45969.0,2.57968024]
[1649178278038,1.787e-05,45972.0,45971.0,0.6641]
[1649178278138,0.002,45978.0,45973.0,0.66464261]
[1649178278238,0.002,45978.0,45976.0,0.11721213]
[1649178278337,0.002,45978.0,45976.0,1.08131213]
[1649178278436,0.002,45978.0,45976.0,1.12501213]
[1649178278535,0.002,45978.0,45976.0,1.22501213]
[1649178279236,0.002,45978.0,45976.0,1.23589213]
[1649178279591,0.002,45978.0,45976.0,0.57179213]
[1649178281188,0.002,45978.0,45976.0,1.23589213]
[1649178283291,0.01366018,45979.0,45977.0,0.6641]
[1649178283397,0.0131,45979.0,45978.0,0.97497]
[1649178283602,0.002,45991.0,45979.0,1.75]
[1649178283699,0.00224039,45986.0,45980.0,0.9641]
[1649178283798,0.00224039,45986.0,45982.0,0.6641]
[1649178283896,0.00224039,45986.0,45983.0,1.072768]
[1649178283995,0.00224039,45986.0,45983.0,1.116468]
[1649178284095,0.00224039,45986.0,45984.0,0.01087]
[1649178284196,0.00224039,45986.0,45985.0,0.6641]
[1649178284296,0.00224039,45986.0,45985.0,1.1078]
[1649178284396,0.00224039,45986.0,45985.0,1.42715288]
[1649178284601,0.002,45991.0,45985.0,1.42715288]
[1649178284698,0.002,45991.0,45986.0,0.9641]
[1649178284797,0.002,45991.0,45986.0,1.0641]
[1649178284896,0.00056012,45988.0,45986.0,1.1078]
[1649178285847,0.002,45991.0,45986.0,1.1078]
[1649178286049,0.00056012,45989.0,45986.0,1.1078]
[1649178286503,0.002,45987.0,45986.0,1.12966737]
[1649178286602,0.002,45987.0,45986.0,2.71853442]
[1649178286702,0.002,45987.0,45986.0,2.80327442]
[1649178286901,0.00056012,45989.0,45986.0,2.80327442]
[1649178287008,0.3340789,46008.0,45988.0,0.78373137]
[1649178287105,0.0051,46007.0,45989.0,4.31926898]
[1649178287203,0.0051,46007.0,45991.0,0.78903526]
[1649178287331,0.0051,46007.0,45992.0,0.9641]
[1649178287432,0.00099441,45996.0,45992.0,1.01867]
[1649178287531,0.00099441,45996.0,45994.0,0.6641]
[1649178287730,0.00099441,45996.0,45995.0,1.0078]
[1649178287830,0.00099441,45996.0,45995.0,1.1078]
[1649178288079,0.00099441,45996.0,45995.0,1.33897071]
[1649178288179,0.48261372,46006.0,45995.0,1.34996808]
[1649178288283,0.21641259,46006.0,45996.0,0.97509737]
[1649178288381,0.21641259,46006.0,45996.0,0.9641]
[1649178288481,0.00734864,45998.0,45996.0,1.11879701]
[1649178288582,0.00734864,45998.0,45996.0,1.14352894]
[1649178289229,0.00734864,45998.0,45996.0,1.19784694]
[1649178289332,0.0071,45998.0,45996.0,1.19784694]
[1649178289780,0.00354864,45999.0,45998.0,0.6641]